[Event "*** Titled Tuesday Blitz"]
[Site "Chess.com"]
[Date "2020.04.28"]
[Round "9"]
[White "Sashadav97"]
[Black "druskacik"]
[Result "1-0"]
[WhiteElo "2752"]
[BlackElo "2579"]
[TimeControl "180+1"]
[EndTime "11:47:13 PDT"]
[Termination "Sashadav97 won by checkmate"]

1. d4 {[%clk 0:03:00.9]} 1... d5 {[%clk 0:02:57.9]} 2. c4 {[%clk 0:03:00.5]}
2... e6 {[%clk 0:02:58.1]} 3. Nc3 {[%clk 0:02:59.4]} 3... Nf6 {[%clk 0:02:57.8]}
4. cxd5 {[%clk 0:02:56.9]} 4... exd5 {[%clk 0:02:58.7]} 5. Bg5 {[%clk
0:02:56.4]} 5... c6 {[%clk 0:02:57.2]} 6. e3 {[%clk 0:02:55.8]} 6... Bd6 {[%clk
0:02:57.3]} 7. Bd3 {[%clk 0:02:55.3]} 7... O-O {[%clk 0:02:57.8]} 8. Nge2 {[%clk
0:02:55.2]} 8... Re8 {[%clk 0:02:43.7]} 9. Qc2 {[%clk 0:02:54.3]} 9... h6 {[%clk
0:02:43]} 10. Bh4 {[%clk 0:02:54]} 10... a5 {[%clk 0:02:42.5]} 11. h3 {[%clk
0:02:53.1]} 11... Na6 {[%clk 0:02:41.9]} 12. a3 {[%clk 0:02:52.9]} 12... Nc7
{[%clk 0:02:42.1]} 13. O-O {[%clk 0:02:50.9]} 13... Ne6 {[%clk 0:02:42.2]} 14.
f4 {[%clk 0:02:41.3]} 14... Nf8 {[%clk 0:02:35.9]} 15. Qd2 {[%clk 0:02:16.3]}
15... Be7 {[%clk 0:02:09.2]} 16. Bf2 {[%clk 0:02:07.4]} 16... Qc7 {[%clk
0:01:57.8]} 17. Rad1 {[%clk 0:01:59.1]} 17... Be6 {[%clk 0:01:56.8]} 18. Ng3
{[%clk 0:01:52.1]} 18... Rad8 {[%clk 0:01:50.3]} 19. Nf5 {[%clk 0:01:49.5]}
19... Bxf5 {[%clk 0:01:42.3]} 20. Bxf5 {[%clk 0:01:50.4]} 20... Qb6 {[%clk
0:01:35.3]} 21. Rfe1 {[%clk 0:01:39.2]} 21... Ne6 {[%clk 0:01:26.9]} 22. Bxe6
{[%clk 0:01:37.1]} 22... fxe6 {[%clk 0:01:26.4]} 23. Qc2 {[%clk 0:01:36.2]}
23... Qc7 {[%clk 0:01:18.3]} 24. Bh4 {[%clk 0:01:33.8]} 24... Rf8 {[%clk
0:01:11.7]} 25. Bxf6 {[%clk 0:01:33]} 25... Bxf6 {[%clk 0:01:09.7]} 26. b4
{[%clk 0:01:32.8]} 26... axb4 {[%clk 0:01:08.5]} 27. axb4 {[%clk 0:01:33.7]}
27... Qd6 {[%clk 0:01:05.5]} 28. Rb1 {[%clk 0:01:31.1]} 28... Ra8 {[%clk
0:01:04.2]} 29. Na4 {[%clk 0:01:26]} 29... Be7 {[%clk 0:01:01.4]} 30. Nc5 {[%clk
0:01:24.8]} 30... b6 {[%clk 0:01:00.9]} 31. Nd3 {[%clk 0:01:18.7]} 31... Ra3
{[%clk 0:01:00.7]} 32. Ne5 {[%clk 0:01:12.2]} 32... c5 {[%clk 0:00:57.4]} 33.
bxc5 {[%clk 0:00:53.1]} 33... bxc5 {[%clk 0:00:58.3]} 34. Ng6 {[%clk 0:00:52.6]}
34... Rc8 {[%clk 0:00:55.8]} 35. Rb6 {[%clk 0:00:44.4]} 35... Qd7 {[%clk
0:00:44.8]} 36. Ne5 {[%clk 0:00:33]} 36... cxd4 {[%clk 0:00:32]} 37. Qg6 {[%clk
0:00:30.4]} 37... Qd8 {[%clk 0:00:21.7]} 38. Qxe6+ {[%clk 0:00:19.2]} 38... Kh7
{[%clk 0:00:22.6]} 39. Qf5+ {[%clk 0:00:18.8]} 39... Kg8 {[%clk 0:00:22.9]} 40.
Qe6+ {[%clk 0:00:18.7]} 40... Kh7 {[%clk 0:00:23.2]} 41. Qg6+ {[%clk 0:00:18.3]}
41... Kg8 {[%clk 0:00:23.5]} 42. Nf7 {[%clk 0:00:14.4]} 42... Qe8 {[%clk
0:00:15.8]} 43. Nxh6+ {[%clk 0:00:14.4]} 43... Kh8 {[%clk 0:00:16.7]} 44. Nf7+
{[%clk 0:00:14.3]} 44... Kg8 {[%clk 0:00:17.1]} 45. Nh6+ {[%clk 0:00:15.2]}
45... Kh8 {[%clk 0:00:17.4]} 46. Qf5 {[%clk 0:00:12.6]} 46... Bf8 {[%clk
0:00:08]} 47. Nf7+ {[%clk 0:00:11.7]} 47... Kg8 {[%clk 0:00:08.2]} 48. Ng5
{[%clk 0:00:12.2]} 48... Bc5 {[%clk 0:00:04.9]} 49. Qh7+ {[%clk 0:00:09.6]}
49... Kf8 {[%clk 0:00:05.3]} 50. Qh8+ {[%clk 0:00:10.1]} 50... Ke7 {[%clk
0:00:05.9]} 51. Qxg7+ {[%clk 0:00:10.7]} 51... Kd8 {[%clk 0:00:05.6]} 52. Ne6+
{[%clk 0:00:11.2]} 52... Qxe6 {[%clk 0:00:05.3]} 53. Rxe6 {[%clk 0:00:12.1]}
53... dxe3 {[%clk 0:00:05.7]} 54. Qf7 {[%clk 0:00:12.3]} 54... e2+ {[%clk
0:00:05.5]} 55. Kh2 {[%clk 0:00:12.6]} 55... Rc6 {[%clk 0:00:05.7]} 56. Re8#
{[%clk 0:00:12.6]} 1-0

[Event "*** Titled Tuesday Blitz"]
[Site "Chess.com"]
[Date "2020.04.28"]
[Round "9"]
[White "BelaKis"]
[Black "tomsishere"]
[Result "0-1"]
[WhiteElo "2062"]
[BlackElo "2388"]
[TimeControl "180+1"]
[EndTime "11:47:15 PDT"]
[Termination "tomsishere won on time"]

1. Nf3 {[%clk 0:03:00.9]} 1... c6 {[%clk 0:02:57.3]} 2. c4 {[%clk 0:02:57.6]}
2... d5 {[%clk 0:02:56.6]} 3. cxd5 {[%clk 0:02:57.8]} 3... cxd5 {[%clk
0:02:56.7]} 4. d4 {[%clk 0:02:58.6]} 4... Nf6 {[%clk 0:02:53.6]} 5. Nc3 {[%clk
0:02:59.5]} 5... g6 {[%clk 0:02:52.3]} 6. Bf4 {[%clk 0:03:00]} 6... Bg7 {[%clk
0:02:51.8]} 7. e3 {[%clk 0:02:59.9]} 7... O-O {[%clk 0:02:51.8]} 8. h3 {[%clk
0:03:00.2]} 8... Ne4 {[%clk 0:02:50.2]} 9. Bd3 {[%clk 0:02:51.1]} 9... Nxc3
{[%clk 0:02:49.5]} 10. bxc3 {[%clk 0:02:50.9]} 10... Nc6 {[%clk 0:02:49.4]} 11.
O-O {[%clk 0:02:34.9]} 11... Re8 {[%clk 0:02:48.2]} 12. c4 {[%clk 0:02:12.9]}
12... e5 {[%clk 0:02:22.7]} 13. dxe5 {[%clk 0:01:51]} 13... Nxe5 {[%clk
0:02:16.1]} 14. Nxe5 {[%clk 0:01:49.9]} 14... Bxe5 {[%clk 0:02:15]} 15. Bxe5
{[%clk 0:00:51.5]} 15... Rxe5 {[%clk 0:02:15.9]} 16. Rb1 {[%clk 0:00:51.5]}
16... b6 {[%clk 0:02:11.9]} 17. Qe2 {[%clk 0:00:44.1]} 17... Bb7 {[%clk
0:02:09]} 18. cxd5 {[%clk 0:00:43.7]} 18... Qxd5 {[%clk 0:02:05.1]} 19. f3
{[%clk 0:00:38.2]} 19... Rae8 {[%clk 0:02:01.8]} 20. e4 {[%clk 0:00:35.6]} 20...
Qd4+ {[%clk 0:02:01.7]} 21. Kh1 {[%clk 0:00:27.3]} 21... Rh5 {[%clk 0:01:59.7]}
22. Bb5 {[%clk 0:00:20.3]} 22... Rc8 {[%clk 0:01:53.1]} 23. Rfd1 {[%clk
0:00:20]} 23... Qe5 {[%clk 0:01:47.3]} 24. Rd7 {[%clk 0:00:19.2]} 24... Rc7
{[%clk 0:01:41.7]} 25. Rxc7 {[%clk 0:00:18.4]} 25... Qxc7 {[%clk 0:01:41.2]} 26.
Rd1 {[%clk 0:00:19.3]} 26... Rc5 {[%clk 0:01:33.8]} 27. Ba6 {[%clk 0:00:18.6]}
27... Bxa6 {[%clk 0:01:23.8]} 28. Qxa6 {[%clk 0:00:19.5]} 28... Rc2 {[%clk
0:01:24.1]} 29. a4 {[%clk 0:00:16.6]} 29... Qg3 {[%clk 0:01:18.5]} 30. Qf1
{[%clk 0:00:15.8]} 30... Qf4 {[%clk 0:01:08.5]} 31. Rd8+ {[%clk 0:00:14.6]}
31... Kg7 {[%clk 0:01:06.1]} 32. Qa1+ {[%clk 0:00:15.2]} 32... f6 {[%clk
0:00:58.9]} 33. Rd7+ {[%clk 0:00:14.4]} 33... Kh6 {[%clk 0:00:57.5]} 34. Rd1
{[%clk 0:00:14.4]} 34... Qg5 {[%clk 0:00:34.1]} 35. Rg1 {[%clk 0:00:13.1]} 35...
Kg7 {[%clk 0:00:26.1]} 36. Qd4 {[%clk 0:00:12.6]} 36... Rc7 {[%clk 0:00:22.7]}
37. Qd8 {[%clk 0:00:12.1]} 37... Qc5 {[%clk 0:00:21]} 38. Rd1 {[%clk 0:00:12.2]}
38... Rf7 {[%clk 0:00:19.8]} 39. Rd7 {[%clk 0:00:10.7]} 39... Qc1+ {[%clk
0:00:19.6]} 40. Kh2 {[%clk 0:00:10.3]} 40... Qf4+ {[%clk 0:00:19.8]} 41. Kh1
{[%clk 0:00:10.4]} 41... Qc1+ {[%clk 0:00:19.9]} 42. Kh2 {[%clk 0:00:10.7]}
42... Qc4 {[%clk 0:00:20.2]} 43. Qe8 {[%clk 0:00:08.5]} 43... h5 {[%clk
0:00:19.8]} 44. Rxf7+ {[%clk 0:00:07.7]} 44... Qxf7 {[%clk 0:00:19.4]} 45. Qa8
{[%clk 0:00:08.2]} 45... Qc7+ {[%clk 0:00:19]} 46. Kh1 {[%clk 0:00:07.6]} 46...
Qc1+ {[%clk 0:00:19.2]} 47. Kh2 {[%clk 0:00:07.8]} 47... Qc7+ {[%clk 0:00:20.1]}
48. Kh1 {[%clk 0:00:08.1]} 48... h4 {[%clk 0:00:17.2]} 49. Qd5 {[%clk 0:00:07]}
49... Qc1+ {[%clk 0:00:16.4]} 50. Kh2 {[%clk 0:00:07.2]} 50... Qf4+ {[%clk
0:00:16.8]} 51. Kh1 {[%clk 0:00:07.6]} 51... Qc7 {[%clk 0:00:16.6]} 52. Qb5
{[%clk 0:00:06.2]} 52... Qc1+ {[%clk 0:00:15.5]} 53. Kh2 {[%clk 0:00:06.5]}
53... Qc7+ {[%clk 0:00:16.4]} 54. Kh1 {[%clk 0:00:06.8]} 54... Kh6 {[%clk
0:00:16.9]} 55. Kg1 {[%clk 0:00:06.8]} 55... Qc1+ {[%clk 0:00:14.7]} 56. Kh2
{[%clk 0:00:06.8]} 56... Qc7+ {[%clk 0:00:15.6]} 57. Kh1 {[%clk 0:00:07.1]}
57... Qb7 {[%clk 0:00:13.2]} 58. Qd3 {[%clk 0:00:05.4]} 58... Qc7 {[%clk
0:00:12.5]} 59. Qb5 {[%clk 0:00:04.1]} 59... Qe7 {[%clk 0:00:10.6]} 60. Kh2
{[%clk 0:00:03.7]} 60... Kg7 {[%clk 0:00:10.9]} 61. Qc5 {[%clk 0:00:04.1]} 61...
Qxc5 {[%clk 0:00:10.7]} 0-1

[Event "*** Titled Tuesday Blitz"]
[Site "Chess.com"]
[Date "2020.04.28"]
[Round "9"]
[White "Pedrada88"]
[Black "mjray79"]
[Result "0-1"]
[WhiteElo "2352"]
[BlackElo "2261"]
[TimeControl "180+1"]
[EndTime "11:47:19 PDT"]
[Termination "mjray79 won by checkmate"]

1. Nf3 {[%clk 0:03:00.9]} 1... Nf6 {[%clk 0:02:59.2]} 2. g3 {[%clk 0:03:01.3]}
2... g6 {[%clk 0:03:00.1]} 3. Bg2 {[%clk 0:03:02.1]} 3... Bg7 {[%clk 0:03:00.6]}
4. d4 {[%clk 0:03:03]} 4... O-O {[%clk 0:03:01.4]} 5. O-O {[%clk 0:03:02.5]}
5... d6 {[%clk 0:03:02.3]} 6. a4 {[%clk 0:03:02.3]} 6... Nc6 {[%clk 0:03:00.9]}
7. a5 {[%clk 0:03:02]} 7... a6 {[%clk 0:03:01]} 8. c4 {[%clk 0:03:00.6]} 8... e5
{[%clk 0:03:00.7]} 9. d5 {[%clk 0:03:01.1]} 9... Ne7 {[%clk 0:02:59.7]} 10. Nc3
{[%clk 0:03:01.2]} 10... Nd7 {[%clk 0:02:57.3]} 11. b4 {[%clk 0:03:00.7]} 11...
f5 {[%clk 0:02:57.3]} 12. Ng5 {[%clk 0:02:57.7]} 12... Nf6 {[%clk 0:02:54.2]}
13. c5 {[%clk 0:02:55.9]} 13... Ne8 {[%clk 0:02:27]} 14. Ra3 {[%clk 0:02:45.6]}
14... e4 {[%clk 0:02:19]} 15. Be3 {[%clk 0:02:41.4]} 15... h6 {[%clk 0:02:16.9]}
16. Ne6 {[%clk 0:02:40.8]} 16... Bxe6 {[%clk 0:02:16.8]} 17. dxe6 {[%clk
0:02:41.7]} 17... d5 {[%clk 0:02:16.8]} 18. Bd4 {[%clk 0:02:37.9]} 18... Nf6
{[%clk 0:02:11.5]} 19. f3 {[%clk 0:02:30.6]} 19... c6 {[%clk 0:01:57.9]} 20. Na4
{[%clk 0:02:21.3]} 20... Qc7 {[%clk 0:01:51.8]} 21. Nb6 {[%clk 0:02:20.8]} 21...
Rad8 {[%clk 0:01:50.7]} 22. Qd2 {[%clk 0:02:11.8]} 22... Kh7 {[%clk 0:01:43.5]}
23. Kh1 {[%clk 0:01:44]} 23... Nc8 {[%clk 0:01:35.5]} 24. Qf4 {[%clk 0:00:58.1]}
24... Qe7 {[%clk 0:01:25.4]} 25. fxe4 {[%clk 0:00:37.6]} 25... dxe4 {[%clk
0:01:13.6]} 26. Nxc8 {[%clk 0:00:35.6]} 26... Rxc8 {[%clk 0:01:14.5]} 27. g4
{[%clk 0:00:17.3]} 27... Nxg4 {[%clk 0:01:03.9]} 28. Bxg7 {[%clk 0:00:16.4]}
28... Kxg7 {[%clk 0:01:04.2]} 29. Rd1 {[%clk 0:00:10.3]} 29... Qxe6 {[%clk
0:00:58.3]} 30. h3 {[%clk 0:00:10.6]} 30... Nf6 {[%clk 0:00:46.2]} 31. Rd6
{[%clk 0:00:10.6]} 31... Qe7 {[%clk 0:00:42.4]} 32. Rg3 {[%clk 0:00:11]} 32...
Kh7 {[%clk 0:00:38.7]} 33. Qh4 {[%clk 0:00:07.6]} 33... Rcd8 {[%clk 0:00:34.9]}
34. Bxe4 {[%clk 0:00:05.5]} 34... Rxd6 {[%clk 0:00:27.8]} 35. cxd6 {[%clk
0:00:02.3]} 35... Qxe4+ {[%clk 0:00:27.5]} 36. Qxe4 {[%clk 0:00:02.7]} 36...
Nxe4 {[%clk 0:00:28.4]} 37. Re3 {[%clk 0:00:02.7]} 37... Nxd6 {[%clk 0:00:25.9]}
38. Re7+ {[%clk 0:00:02.4]} 38... Rf7 {[%clk 0:00:26.4]} 39. Re6 {[%clk
0:00:02.8]} 39... Rd7 {[%clk 0:00:25.5]} 40. Kg2 {[%clk 0:00:03.5]} 40... Ne4
{[%clk 0:00:25.4]} 41. h4 {[%clk 0:00:03.7]} 41... Kg7 {[%clk 0:00:25.8]} 42. h5
{[%clk 0:00:04.1]} 42... gxh5 {[%clk 0:00:24.6]} 43. Kf3 {[%clk 0:00:04.5]}
43... Ng5+ {[%clk 0:00:23.8]} 44. Kf4 {[%clk 0:00:05]} 44... Nxe6+ {[%clk
0:00:24.7]} 45. Ke5 {[%clk 0:00:05.9]} 45... Nd4 {[%clk 0:00:24.4]} 46. e4
{[%clk 0:00:05.6]} 46... fxe4 {[%clk 0:00:23.3]} 47. Kxe4 {[%clk 0:00:06.5]}
47... Nc2 {[%clk 0:00:23.4]} 48. b5 {[%clk 0:00:07.2]} 48... axb5 {[%clk
0:00:22]} 49. Ke5 {[%clk 0:00:07.6]} 49... b4 {[%clk 0:00:22.2]} 50. a6 {[%clk
0:00:08.5]} 50... bxa6 {[%clk 0:00:21.4]} 51. Ke6 {[%clk 0:00:09.4]} 51... Rd1
{[%clk 0:00:21.2]} 52. Ke7 {[%clk 0:00:09.6]} 52... b3 {[%clk 0:00:22.1]} 53.
Ke6 {[%clk 0:00:10.5]} 53... b2 {[%clk 0:00:22.2]} 54. Ke7 {[%clk 0:00:11.4]}
54... b1=Q {[%clk 0:00:22]} 55. Ke6 {[%clk 0:00:12.3]} 55... Re1+ {[%clk
0:00:21.3]} 56. Kd7 {[%clk 0:00:12.5]} 56... Qd1+ {[%clk 0:00:20.4]} 57. Kc7
{[%clk 0:00:13.4]} 57... Re7+ {[%clk 0:00:20.1]} 58. Kb6 {[%clk 0:00:14.3]}
58... Qd6 {[%clk 0:00:17]} 59. Ka5 {[%clk 0:00:14.2]} 59... Rb7 {[%clk 0:00:09]}
60. Kxa6 {[%clk 0:00:12.3]} 60... Qb8 {[%clk 0:00:06.9]} 61. Ka5 {[%clk
0:00:12]} 61... Qa7# {[%clk 0:00:01.7]} 0-1

[Event "*** Titled Tuesday Blitz"]
[Site "Chess.com"]
[Date "2020.04.28"]
[Round "9"]
[White "Pittiplatsh"]
[Black "ZarinaShafigullina"]
[Result "0-1"]
[WhiteElo "2432"]
[BlackElo "2235"]
[TimeControl "180+1"]
[EndTime "11:47:23 PDT"]
[Termination "ZarinaShafigullina won on time"]

1. e4 {[%clk 0:03:00.9]} 1... c5 {[%clk 0:02:59.4]} 2. Nf3 {[%clk 0:03:00.4]}
2... Nc6 {[%clk 0:02:59.1]} 3. d4 {[%clk 0:03:00.4]} 3... cxd4 {[%clk
0:02:59.7]} 4. Nxd4 {[%clk 0:03:01]} 4... e5 {[%clk 0:03:00.3]} 5. Nb5 {[%clk
0:03:00.4]} 5... d6 {[%clk 0:03:00.6]} 6. N1c3 {[%clk 0:02:57.7]} 6... a6 {[%clk
0:03:00.6]} 7. Na3 {[%clk 0:02:57.9]} 7... Be7 {[%clk 0:03:01.2]} 8. Nd5 {[%clk
0:02:56.8]} 8... Nf6 {[%clk 0:03:01.2]} 9. Nxf6+ {[%clk 0:02:49.5]} 9... Bxf6
{[%clk 0:02:56.9]} 10. Nc4 {[%clk 0:02:50]} 10... Be7 {[%clk 0:02:56.9]} 11. c3
{[%clk 0:02:46.5]} 11... Be6 {[%clk 0:02:42.8]} 12. Ne3 {[%clk 0:02:38.4]} 12...
Bg5 {[%clk 0:02:41.9]} 13. Be2 {[%clk 0:02:37.4]} 13... O-O {[%clk 0:02:31]} 14.
O-O {[%clk 0:02:37.2]} 14... g6 {[%clk 0:02:31.2]} 15. a4 {[%clk 0:02:32.6]}
15... f5 {[%clk 0:02:27.5]} 16. exf5 {[%clk 0:02:26.4]} 16... gxf5 {[%clk
0:02:27.4]} 17. Nd5 {[%clk 0:02:26]} 17... Bxc1 {[%clk 0:02:19.6]} 18. Rxc1
{[%clk 0:02:25.4]} 18... Ne7 {[%clk 0:02:20.2]} 19. Bc4 {[%clk 0:02:15.5]} 19...
Kh8 {[%clk 0:02:08.4]} 20. f4 {[%clk 0:02:12.6]} 20... Ng6 {[%clk 0:01:48.1]}
21. g3 {[%clk 0:01:53.4]} 21... Bxd5 {[%clk 0:01:42.2]} 22. Bxd5 {[%clk
0:01:38.5]} 22... Qb6+ {[%clk 0:01:38.5]} 23. Rf2 {[%clk 0:01:25.5]} 23... exf4
{[%clk 0:01:35.5]} 24. a5 {[%clk 0:01:25.6]} 24... Qa7 {[%clk 0:01:34.8]} 25.
Qh5 {[%clk 0:01:15.9]} 25... fxg3 {[%clk 0:01:34]} 26. hxg3 {[%clk 0:01:16.1]}
26... f4 {[%clk 0:01:23.8]} 27. g4 {[%clk 0:00:53.8]} 27... Rae8 {[%clk
0:01:13.3]} 28. Rf1 {[%clk 0:00:48.5]} 28... Qe3 {[%clk 0:01:02.2]} 29. Kh1
{[%clk 0:00:46.3]} 29... Re5 {[%clk 0:00:46.9]} 30. Qh6 {[%clk 0:00:37.3]} 30...
Rxd5 {[%clk 0:00:44.8]} 31. Rf3 {[%clk 0:00:36.3]} 31... Qe4 {[%clk 0:00:41.4]}
32. Kg1 {[%clk 0:00:28.5]} 32... Re5 {[%clk 0:00:31.9]} 33. b4 {[%clk
0:00:22.1]} 33... d5 {[%clk 0:00:28.6]} 34. R3f2 {[%clk 0:00:17]} 34... f3
{[%clk 0:00:27.4]} 35. Rh2 {[%clk 0:00:17.1]} 35... Re7 {[%clk 0:00:20.6]} 36.
g5 {[%clk 0:00:13.5]} 36... f2+ {[%clk 0:00:19]} 37. Rhxf2 {[%clk 0:00:12.4]}
37... Rxf2 {[%clk 0:00:18.2]} 38. Rxf2 {[%clk 0:00:12.8]} 38... Qg4+ {[%clk
0:00:17.3]} 39. Kh2 {[%clk 0:00:12.3]} 39... Qc8 {[%clk 0:00:14.9]} 40. Qh5
{[%clk 0:00:10.8]} 40... Qc7+ {[%clk 0:00:14.4]} 41. Kh1 {[%clk 0:00:10.3]}
41... Qc6 {[%clk 0:00:13.2]} 42. Kh2 {[%clk 0:00:09.3]} 42... Qd6+ {[%clk
0:00:13]} 43. Kh1 {[%clk 0:00:09.6]} 43... Qc6 {[%clk 0:00:13.4]} 44. Kh2 {[%clk
0:00:09.4]} 44... Qxc3 {[%clk 0:00:13.5]} 45. Qg4 {[%clk 0:00:09.1]} 45... Qe5+
{[%clk 0:00:13.1]} 46. Kh1 {[%clk 0:00:08.7]} 46... Qe1+ {[%clk 0:00:13.2]} 47.
Kg2 {[%clk 0:00:08.4]} 47... Qe4+ {[%clk 0:00:13.2]} 48. Qxe4 {[%clk 0:00:08.6]}
48... Rxe4 {[%clk 0:00:13.5]} 49. Rf6 {[%clk 0:00:09.4]} 49... Rxb4 {[%clk
0:00:13]} 50. Kf3 {[%clk 0:00:09.4]} 50... d4 {[%clk 0:00:12.9]} 51. Rf7 {[%clk
0:00:09.3]} 51... Rb5 {[%clk 0:00:12.4]} 52. Ke4 {[%clk 0:00:08.7]} 52... Rxa5
{[%clk 0:00:12.2]} 53. Rxb7 {[%clk 0:00:08.3]} 53... Rxg5 {[%clk 0:00:11.3]} 54.
Kxd4 {[%clk 0:00:08.6]} 54... a5 {[%clk 0:00:11.6]} 55. Rb8+ {[%clk 0:00:08]}
55... Kg7 {[%clk 0:00:11.5]} 56. Ra8 {[%clk 0:00:08.9]} 56... h5 {[%clk
0:00:10.9]} 57. Ra7+ {[%clk 0:00:08.9]} 57... Kh6 {[%clk 0:00:11.1]} 0-1

[Event "*** Titled Tuesday Blitz"]
[Site "Chess.com"]
[Date "2020.04.28"]
[Round "9"]
[White "Angry_Twin"]
[Black "LiemLe"]
[Result "1-0"]
[WhiteElo "2821"]
[BlackElo "2991"]
[TimeControl "180+1"]
[EndTime "11:47:24 PDT"]
[Termination "Angry_Twin won by resignation"]

1. e4 {[%clk 0:03:00.9]} 1... c5 {[%clk 0:02:59.9]} 2. Nf3 {[%clk 0:03:00.3]}
2... Nc6 {[%clk 0:03:00.5]} 3. Bb5 {[%clk 0:03:00.3]} 3... g6 {[%clk 0:02:59.4]}
4. Bxc6 {[%clk 0:03:00.1]} 4... bxc6 {[%clk 0:03:00.3]} 5. O-O {[%clk
0:02:59.7]} 5... Bg7 {[%clk 0:02:59.6]} 6. Re1 {[%clk 0:02:59.9]} 6... Qc7
{[%clk 0:02:56.7]} 7. h3 {[%clk 0:02:55.7]} 7... d6 {[%clk 0:02:51.3]} 8. c3
{[%clk 0:02:54.1]} 8... Nf6 {[%clk 0:02:46.8]} 9. d4 {[%clk 0:02:54.1]} 9...
cxd4 {[%clk 0:02:46.1]} 10. cxd4 {[%clk 0:02:55]} 10... O-O {[%clk 0:02:46.1]}
11. Nc3 {[%clk 0:02:54.8]} 11... c5 {[%clk 0:02:41]} 12. Bg5 {[%clk 0:02:52.3]}
12... cxd4 {[%clk 0:02:13.6]} 13. Nxd4 {[%clk 0:02:49.1]} 13... Bb7 {[%clk
0:02:12.5]} 14. Rc1 {[%clk 0:02:47.3]} 14... Qb8 {[%clk 0:02:10.1]} 15. Qd2
{[%clk 0:02:24.1]} 15... Rc8 {[%clk 0:02:09.2]} 16. b3 {[%clk 0:02:16.4]} 16...
Rc5 {[%clk 0:01:59.8]} 17. f3 {[%clk 0:01:56.1]} 17... Qd8 {[%clk 0:01:47.7]}
18. Be3 {[%clk 0:01:48.2]} 18... Rcc8 {[%clk 0:01:28.2]} 19. Na4 {[%clk
0:01:36]} 19... Nd7 {[%clk 0:00:56.8]} 20. Rxc8 {[%clk 0:01:13.3]} 20... Rxc8
{[%clk 0:00:57.7]} 21. Rc1 {[%clk 0:01:13.8]} 21... Rxc1+ {[%clk 0:00:29.6]} 22.
Qxc1 {[%clk 0:01:14.7]} 22... Qa5 {[%clk 0:00:29.3]} 23. Qc3 {[%clk 0:00:48.4]}
23... Qxc3 {[%clk 0:00:23.2]} 24. Nxc3 {[%clk 0:00:49.3]} 24... f5 {[%clk
0:00:19.2]} 25. exf5 {[%clk 0:00:31.3]} 25... gxf5 {[%clk 0:00:20.1]} 26. Nce2
{[%clk 0:00:24.1]} 26... f4 {[%clk 0:00:20.5]} 27. Bf2 {[%clk 0:00:18.6]} 27...
Ba6 {[%clk 0:00:10.3]} 28. Kf1 {[%clk 0:00:11.7]} 28... Kf7 {[%clk 0:00:08.2]}
29. Nf5 {[%clk 0:00:10.7]} 29... Nc5 {[%clk 0:00:04.7]} 30. Nxg7 {[%clk
0:00:09.5]} 30... Kxg7 {[%clk 0:00:04.6]} 31. Bxc5 {[%clk 0:00:09]} 31... dxc5
{[%clk 0:00:05.5]} 32. Ke1 {[%clk 0:00:09.4]} 32... e5 {[%clk 0:00:05.2]} 33.
Nc3 {[%clk 0:00:09.6]} 33... Kf7 {[%clk 0:00:04.6]} 34. Ne4 {[%clk 0:00:09.7]}
34... c4 {[%clk 0:00:05]} 35. bxc4 {[%clk 0:00:10.1]} 35... Ke7 {[%clk
0:00:04.6]} 36. c5 {[%clk 0:00:07.4]} 36... Bc4 {[%clk 0:00:04.8]} 37. a3 {[%clk
0:00:07]} 37... h6 {[%clk 0:00:04.6]} 38. g3 {[%clk 0:00:06.2]} 38... fxg3
{[%clk 0:00:04.1]} 39. Nxg3 {[%clk 0:00:07.1]} 39... Ke6 {[%clk 0:00:04.1]} 40.
Ne4 {[%clk 0:00:07.5]} 40... Kd5 {[%clk 0:00:04.2]} 41. Kd2 {[%clk 0:00:08.1]}
41... Bf1 {[%clk 0:00:04.3]} 42. h4 {[%clk 0:00:08.1]} 42... Bh3 {[%clk
0:00:04.3]} 43. Ke3 {[%clk 0:00:03.6]} 43... Bf5 {[%clk 0:00:04.2]} 44. Nf6+
{[%clk 0:00:02.2]} 44... Kxc5 {[%clk 0:00:03.8]} 45. Ng8 {[%clk 0:00:03.1]}
45... h5 {[%clk 0:00:03.5]} 46. Nf6 {[%clk 0:00:03.5]} 46... Bg6 {[%clk
0:00:03.8]} 47. Nd7+ {[%clk 0:00:04]} 47... Kd6 {[%clk 0:00:03.6]} 48. Nf6
{[%clk 0:00:04.5]} 48... a5 {[%clk 0:00:02.8]} 49. f4 {[%clk 0:00:03.8]} 49...
exf4+ {[%clk 0:00:02.7]} 50. Kxf4 {[%clk 0:00:04.7]} 50... a4 {[%clk 0:00:02.7]}
51. Kg5 {[%clk 0:00:05]} 51... Bf7 {[%clk 0:00:02.7]} 52. Nxh5 {[%clk
0:00:05.3]} 52... Kc5 {[%clk 0:00:03.2]} 53. Nf4 {[%clk 0:00:05.4]} 53... Kc4
{[%clk 0:00:03.4]} 54. Kf6 {[%clk 0:00:03.1]} 54... Be8 {[%clk 0:00:03.7]} 55.
Ng6 {[%clk 0:00:03.5]} 55... Bxg6 {[%clk 0:00:02]} 56. Kxg6 {[%clk 0:00:03.6]}
56... Kb3 {[%clk 0:00:02.9]} 57. h5 {[%clk 0:00:04.5]} 57... Kxa3 {[%clk
0:00:03.6]} 58. h6 {[%clk 0:00:05.4]} 58... Kb3 {[%clk 0:00:03.4]} 59. h7 {[%clk
0:00:06.3]} 59... a3 {[%clk 0:00:04]} 60. h8=Q {[%clk 0:00:06.6]} 60... a2
{[%clk 0:00:04.9]} 61. Qa1 {[%clk 0:00:07.2]} 61... Ka3 {[%clk 0:00:05.3]} 62.
Kf5 {[%clk 0:00:08.1]} 62... Kb3 {[%clk 0:00:06.2]} 63. Ke4 {[%clk 0:00:09]}
63... Kc4 {[%clk 0:00:05.5]} 64. Qxa2+ {[%clk 0:00:08.8]} 1-0